Cogmind - Beta 16 @@@ ROGUE MODE // 2025.11.25 @ 23:21:46 Player: Skysub Result: Destroyed by H-55 Commando with Gauss Rifle Performance ------------- Evolutions (2) 1000 Regions Visited (3) 600 Robots Destroyed (0) 0 Value Destroyed (0) 0 Prototype IDs (0) 0 Alien Tech Used (0) 0 Bonus (470) 470 TOTAL SCORE: 2070 Bonus ------- Pacifist 470 Cogmind --------- Core Integrity 0/550 Matter 300/300 Energy 99/100 System Corruption 3% Temperature Cool (0) Movement Core (50) Location -8/Materials Parts ------- > --- POWER (1) -------- (None) > --- PROPULSION (4) --- (None) > --- UTILITY (4) ------ (None) > --- WEAPON (2) ------- (None) > --- INVENTORY (5) ---- Ion Engine Ion Engine Peak State ------------ None Favorites ----------- Power None Propulsion None Utility None Weapon None Build | -11 -10 -9 -8 ------- Run | Yrd Mat Mat Mat Slots Evolved 4 | . . 2 2 Power . | . . . . Propulsion 2 | . . 1 1 Utility 2 | . . 1 1 Weapon . | . . . . Parts Attached . | . . . . Power . | . . . . Engine . | . . . . Core . | . . . . Reactor . | . . . . Propulsion . | . . . . Treads . | . . . . Leg . | . . . . Wheel . | . . . . Hover . | . . . . Flight . | . . . . Utility . | . . . . Device . | . . . . Storage . | . . . . Processor . | . . . . Hackware . | . . . . Protection . | . . . . Artifact . | . . . . Weapon . | . . . . Energy Gun . | . . . . Energy Cannon . | . . . . Ballistic Gun . | . . . . Ballistic Cannon . | . . . . Launcher . | . . . . Special Weapon . | . . . . Impact Weapon . | . . . . Slashing Weapon . | . . . . Piercing Weapon . | . . . . Special Melee Weapon . | . . . . Unidentified Prototypes . | . . . . Parts Lost . | . . . . Power . | . . . . Propulsion . | . . . . Utility . | . . . . Weapon . | . . . . Highest Loss Streak . | . . . . To Critical Strikes . | . . . . Average Backups 1 | 1 2 2 2 Power 1 | 1 2 2 2 Propulsion . | . . . . Utility . | . . . . Weapon . | . . . . Tool/Special . | . . . . Unused Backups 2 | . . . 2 Power 2 | . . . 2 Propulsion . | . . . . Utility . | . . . . Weapon . | . . . . Tool/Special . | . . . . Average Slot Usage (%) . | . . . . Peak Build Rating . | . . . . Average Rating . | . . . . On Entrance . | . . . . Avg Prop Armor Cover (%) . | . . . . Naked Turns 196 | . 34 53 109 Heaviest Build . | . . . . Greatest Support 3 | 3 3 3 3 Greatest Overweight (x) . | . . . . Average Overweight (x) . | . . . . Largest Inventory Capacity 5 | 5 5 5 5 Average Capacity 5 | 5 5 5 5 Most Carried 2 | 2 2 2 2 Average Carried 1 | 1 2 2 2 Final Capacity 5 | 5 5 5 5 Final Carried 2 | 2 2 2 2 Class Distribution -------------------- 100% | Mutant Dominant Class ---------------- Mutant | -10/Materials Mutant | -9/Materials Mutant | -8/Materials Resources | -11 -10 -9 -8 ----------- Run | Yrd Mat Mat Mat Matter Collected 200 | 200 . . . Remotely . | . . . . Salvage Created . | . . . . Parts . | . . . . Haulers Intercepted . | . . . . Recyclers Shooed . | . . . . Parts Field Recycled . | . . . . Retrieved Matter . | . . . . Parts Self-Destructed . | . . . . Prevented . | . . . . Parts Restored . | . . . . Kills | -11 -10 -9 -8 ------- Run | Yrd Mat Mat Mat Combat Hostiles Destroyed . | . . . . Classes Destroyed . | . . . . Best Kill Streak . | . . . . Combat Bots Only . | . . . . Max Kills in Single Turn . | . . . . Gunslinging . | . . . . Exploded . | . . . . Melee . | . . . . Uniques/NPCs Destroyed . | . . . . Combat | -11 -10 -9 -8 -------- Run | Yrd Mat Mat Mat Hostile Shots Fired 62 | . . . 62 Missed 24 | . . . 24 Hits 38 | . . . 38 Melee 3 | . . . 3 Projectile 35 | . . . 35 AOE 1 | . . . 1 Critical Strikes 2 | . . . 2 Damage Taken 551 | . . . 551 Core 551 | . . . 551 Absorbed by Shields . | . . . . Core Remaining (%) 100 | 100 100 100 . Volleys Fired . | . . . . Largest . | . . . . Hottest . | . . . . Shots Fired . | . . . . Gun . | . . . . Cannon . | . . . . Launcher . | . . . . Special . | . . . . Kinetic . | . . . . Thermal . | . . . . Explosive . | . . . . Electromagnetic . | . . . . Robot Hit Streak . | . . . . Robot Miss Streak . | . . . . Penetration Max . | . . . . Secondary Targets . | . . . . Shots Hit Robots . | . . . . Core Hits 1 | . . . 1 Critical Kills . | . . . . Critical Parts Destroyed . | . . . . Critical Strikes . | . . . . Melee Attacks . | . . . . Impact . | . . . . Slashing . | . . . . Piercing . | . . . . Sneak Attacks . | . . . . Combat Hostiles . | . . . . Follow-up Attacks . | . . . . Damage Inflicted 4 | . . . 4 Guns . | . . . . Cannons . | . . . . Explosions . | . . . . Melee . | . . . . Ramming 4 | . . . 4 Kinetic . | . . . . Thermal . | . . . . Explosive . | . . . . Electromagnetic . | . . . . Impact . | . . . . Slashing . | . . . . Piercing . | . . . . Highest Corruption 3 | . . . 3 Average Corruption 2 | . . . 2 Corruption Purged . | . . . . Corruption Blocked . | . . . . Overload Shots . | . . . . Overflow Damage . | . . . . Projectiles . | . . . . Explosions . | . . . . Melee . | . . . . Knockbacks . | . . . . Impact . | . . . . Kinetic . | . . . . Secondary . | . . . . Self-Inflicted Damage . | . . . . Shots . | . . . . Rammed 4 | . . . 4 Targets Rammed 4 | . . . 4 Kicked . | . . . . Crushed . | . . . . Highest Temperature . | . . . . Average Temperature . | . . . . Received Heat Transfer 153 | . . . 153 Siege Activations . | . . . . Martial Activations . | . . . . Shielding Activations . | . . . . Robots Disrupted . | . . . . Combat Hostiles . | . . . . Robots Corrupted . | . . . . Combat Hostiles . | . . . . Parts Fried . | . . . . Impact Corruptions . | . . . . Robots Melted . | . . . . Combat Hostiles . | . . . . Parts Melted . | . . . . Heat Transferred . | . . . . Parts Sabotaged . | . . . . Parts Stolen . | . . . . Parts Stripped . | . . . . Power Chain Reactions . | . . . . Alert | -11 -10 -9 -8 ------- Run | Yrd Mat Mat Mat Maximum Alert Level . | . . . . Low Security (%) 100 | 100 100 100 100 Level 1 . | . . . . Level 2 . | . . . . Level 3 . | . . . . Level 4 . | . . . . Level 5 . | . . . . High Security . | . . . . Max Security . | . . . . Peak Influence 30 | . 5 8 30 Initial . | . . . . Average 5 | . . 2 9 Influence Increases 43 | . 5 8 30 Successful Hack 13 | . 5 8 . Partial Spotted 15 | . . . 15 Lose Combat Pursuer 15 | . . . 15 Influence Decreases 43 | . 5 8 30 Time Decay 43 | . 5 8 30 Squads Dispatched 3 | . . . 3 Investigation 2 | . . . 2 Extermination . | . . . . Reinforcement 1 | . . . 1 Assault . | . . . . Garrison . | . . . . Intercept . | . . . . Searches Triggered . | . . . . Construction Impeded . | . . . . Haulers Reinforced . | . . . . Active Scanning Responses . | . . . . Cargo Convoy Interrupts . | . . . . Stealth | -11 -10 -9 -8 --------- Run | Yrd Mat Mat Mat Distress Signals 2 | . . . 2 Communications Jammed . | . . . . Distress Signals . | . . . . Times Spotted 25 | . 1 3 21 Peak Tracking Total 22 | . 1 3 22 Tactical Retreats 1 | . . . 1 Traps | -11 -10 -9 -8 ------- Run | Yrd Mat Mat Mat Traps Triggered 1 | . . . 1 Indirectly . | . . . . Trap Hack Attempts . | . . . . Triggered . | . . . . Disarmed . | . . . . Reprogrammed . | . . . . Reused . | . . . . Traps Extracted . | . . . . Installed . | . . . . Triggered . | . . . . Machines | -11 -10 -9 -8 ---------- Run | Yrd Mat Mat Mat Machines Disabled . | . . . . Max in Single Turn . | . . . . Machines Repaired . | . . . . Machines Dismantled . | . . . . Machines Sabotaged . | . . . . Overloaded Fab Kills . | . . . . Hacking | -11 -10 -9 -8 --------- Run | Yrd Mat Mat Mat Machines Accessed 6 | . 1 2 3 Terminals 6 | . 1 2 3 Fabricators . | . . . . Repair Stations . | . . . . Recycling Units . | . . . . Scanalyzers . | . . . . Garrison Access . | . . . . Total Hacks 20 | . 3 8 9 Successful 5 | . 1 2 2 Failed 15 | . 2 6 7 Catastrophic 6 | . . 2 4 Database Lockouts . | . . . . Manual 20 | . 3 8 9 Terminals 20 | . 3 8 9 Fabricators . | . . . . Repair Stations . | . . . . Recycling Units . | . . . . Scanalyzers . | . . . . Garrison Access . | . . . . Terminal Hacks 1 | . . 1 . Level Access Points 1 | . . 1 . Fabricator Hacks . | . . . . Repair Station Hacks . | . . . . Recycling Unit Hacks . | . . . . Scanalyzer . | . . . . Garrison Access Hacks . | . . . . Unauthorized Hacks 4 | . 1 1 2 Terminals 4 | . 1 1 2 Botnet 4 | . 1 1 2 Fabricators . | . . . . Repair Stations . | . . . . Recycling Units . | . . . . Scanalyzers . | . . . . Garrison Access . | . . . . Data Cores Recovered . | . . . . Used . | . . . . Hacking Detections 6 | . 1 2 3 Full Trace Events 6 | . 1 2 3 Feedback Events . | . . . . Feedback Blocked . | . . . . Robot Schematics Acquired . | . . . . Robots Built . | . . . . Authchips . | . . . . Time . | . . . . Total Robot Build Rating . | . . . . Part Schematics Acquired . | . . . . Parts Built . | . . . . Authchips . | . . . . Time . | . . . . Total Part Build Rating . | . . . . Part Studies Acquired . | . . . . Parts Repaired . | . . . . Time . | . . . . Parts Recycled . | . . . . Recycled Matter . | . . . . Retrieved Matter . | . . . . Retrieved Components . | . . . . Parts Scanalyzed . | . . . . Part Schematics Acquired . | . . . . Parts Damaged . | . . . . Bothacking | -11 -10 -9 -8 ------------ Run | Yrd Mat Mat Mat Used RIF Installer . | . . . . Robots Hacked . | . . . . Non-combat . | . . . . Combat . | . . . . Robot Hacks Applied . | . . . . Relay Couplers Released . | . . . . Fabnet Peak Effective % . | . . . . Robots Rewired . | . . . . Allies Hacked . | . . . . Hacks Repelled . | . . . . Allies | -11 -10 -9 -8 -------- Run | Yrd Mat Mat Mat Total Allies . | . . . . Largest Group . | . . . . Highest-Rated Group . | . . . . Highest-Rated Ally . | . . . . Total Orders . | . . . . Ally Attacks . | . . . . Total Damage . | . . . . Kills . | . . . . Allies Corrupted . | . . . . Allies Melted . | . . . . Intel | -11 -10 -9 -8 ------- Run | Yrd Mat Mat Mat Active Infowar (turns) . | . . . . Robot Analysis Total . | . . . . Derelict Logs Recovered . | . . . . Drone Launches . | . . . . Drone Recoveries . | . . . . Exploration | -11 -10 -9 -8 ------------- Run | Yrd Mat Mat Mat Turns Passed 210 | 14 34 53 109 Spaces Moved 406 | 24 68 105 209 Core 406 | 24 68 105 209 Treads . | . . . . Legs . | . . . . Wheels . | . . . . Hover . | . . . . Flight . | . . . . Fastest Speed 50 | 50 50 50 50 Average Speed 50 | 50 50 50 50 Slowest Speed 50 | 50 50 50 50 Overloaded Moves . | . . . . Propulsion Burnouts . | . . . . Robots Hopped . | . . . . Potential Cave-ins . | . . . . Cave-ins Triggered . | . . . . Exploration Rate (%) 20 | 3 29 20 30 Regions Visited 3 Branch Regions . Pre-discovered Areas . | . . . . Known Exits Taken 1 | . . 1 . Unknown Exits Taken 2 | 1 1 . . Scrap Searched . | . . . . Spaces Dug . | . . . . Terrain Destroyed . | . . . . Melee . | . . . . Projectile . | . . . . AOE . | . . . . Terrain Rammed . | . . . . Walls Destroyed . | . . . . Machines Disabled . | . . . . Actions | -11 -10 -9 -8 --------- Run | Yrd Mat Mat Mat Total 409 | 25 67 104 213 Wait . | . . . . Move 403 | 23 67 104 209 Hop . | . . . . Pick Up 2 | 2 . . . Fast Attach . | . . . . Attach . | . . . . Detach . | . . . . Swap . | . . . . Drop . | . . . . Fire . | . . . . Melee . | . . . . Ram 4 | . . . 4 Kick . | . . . . Crush . | . . . . Escape Stasis . | . . . . Rewire . | . . . . Trap . | . . . . Miscellaneous . | . . . . Route ------- -11/Scrapyard -10/Materials (discovered 2 exits: *Mat / [*Min]) -9/Materials (discovered 3 exits: *Mat x3) -8/Materials History --------- Turn | Location | Event 7 | -11/Scrapyard | Discovered new exit (range 14) 15 | -11/Scrapyard | Entered Materials 32 | -10/Materials | Discovered new exit (range 8) 42 | -10/Materials | Discovered new exit (range 16) 49 | -10/Materials | Entered another Materials area 49 | -9/Materials | Evolved 2 slots: Propulsion x1, Utility x1 72 | -9/Materials | Identified exit to Materials 102 | -9/Materials | Entered another Materials area 102 | -8/Materials | Evolved 2 slots: Propulsion x1, Utility x1 192 | -8/Materials | Core integrity fell below 50% 208 | -8/Materials | Core integrity fell below 20% 211 | -8/Materials | Destroyed by H-55 Commando with Gauss Rifle Last Messages --------------- 00139_ The floor emits a surge of raw power. 00139_ System corrupted (+1). 00143_ U-05 Engineer lays Concrete. 00154_ Slammed into U-05 Engineer. 00158_ Destabilizing: System corrupted (+2). 00160_ Slammed into U-05 Engineer. 00160_ Critical hit (Burn: +37). 00168_ W-25 Informer sends out distress signal. 00191_ G-47 Trooper suffers critical hit (Burn). 00196_ ALERT: Suspicious intruders detected, dispatching Cutter reinforcements to area. 00204_ U-05 Engineer builds a Wall. 00204_ U-05 Engineer works on Matter Pump. 00205_ Penetrated by Slug. 00207_ Connecting with Terminal... 00207_ ALERT: Suspicious activity at Terminal M001. Dispatching Investigation squad. 00208_ K-01 Serf cleans the Atomic Centrifuge. 00208_ K-01 Serf collects debris. 00210_ Knocked back. Map ----- +----------------------------------------------------+ | ?????????????????????????????????????????????????? | | ?????????????????????????????????????????????????? | | ?????????????????????????????????????????????????? | | ?????????????????????????????????????????????????? | | ?????????????????????????????????????????????????? | | ?????????????????????????????????????????????????? | | ?????????????????????????????????????????????????? | | ?????????????????????????????????????????????????? | | ?????????????????????????????????????????????????? | | ?????????????????????????????????????????????????? | | ?????????????????????????????????????????????????? | | ?????????????????????######??????????????????????? | | ?????????????????? ######????????????????? | | ??????????????? w ??????????????? | | ?????????????? ?????????????? | | ##??????????? ??????????????? | | #??????????? #??????????????? | | #??????????? #??????????????? | | #????????????#k #??????????????? | | ###??????????# ###????????????? | | ## ????? #??# ?????????????? | | #? ????? #??# #??????????????? | | +## """ #??# u a #??????????????? | | #? """ ???# #??????????????? | | " #? ???# #??????????????? | | " #?? """ ????# @ #??????????????? | | " #?? """ ????# h c +??????????????? | | #???"""?????# s c #??????????????? | | #??? ?????# s s c #??????????????? | | /######+####### "" #??????????????? | | u "T #?????????????? | | ""s w #?????????????? | | u #?????????????? | | ###### #?????????????? | | ?????# #?????????????? | | ?????# #######+##### #?????????????? | | ???? # #???????????# """ " ?????????????? | | ??"" # #???????????# """k g"G" ?????????????? | | ??"" # #???????????# """ " " ??????????????? | | ??""?# #???????????# ? ?????????????????? | | ? ?+ #???????????# ?? ?????????????????? | | ?! ??# #???????????? ""????"??????????????????? | | ? ???# #???????????? "????????????????????????? | | ?????# #???????????? "????????????????????????? | | ????? ????????????? ?????????????????????????? | | ?????! ????????????????????????????????????????? | | ????? ????????????????????????????????????????? | | ?????? ????????????????????????????????????????? | | ?????????????????????????????????????????????????? | | ?????????????????????????????????????????????????? | +----------------------------------------------------+ Best States ------------- Heat Dissipation 31 Energy Generation 5 Energy Capacity 100 Matter Stores 300 Matter Capacity 300 Sight Range 16 Terrain Scan Density 10 Evasion (%) 50 Item Schematics ----------------- None Robot Schematics ------------------ None Fabricated ------------ Nothing Repaired ---------- Nothing Studied --------- None Alien Tech Used ----------------- None Achievements -------------- None Challenges ------------ None Game ------ Seed VoltaicPlexusLog Manual? 0 Play Time 00:05:28 Cumulative 287.1 hours Start 2025.11.25 @ 23:18:19 End 2025.11.25 @ 23:21:46 Sessions 1 Manual Loads 0 Difficulty Rogue Special Mode None Game No. 319 Rogue 319 Adventurer 0 Explorer 0 Win Type - Total 15 Types 8/0/3/1/1/0/0/1/0/1 Lore% 77 Gallery% 75 Achievement% 57 Wizard Run 0 Options --------- Layout 1 ASCII 0 Keyboard 1 Movement Numpad Keybinds 0 Fullscreen 2 Font 32/SmallcapsGlow Map View 77x35 Zoom Use 0% Tactical HUD 1 Map Filters NONE Filters NONE Steam 1 RUN: 0c824302-0b09-4dbe-8a11-b52610a4107b